[Event "Reykjavik Open 2025"]
[Site "Reykjavik"]
[Date "2025.04.14"]
[Round "8.22"]
[White "Adams, Henry"]
[Black "Thorfinnsson, Bragi"]
[Result "0-1"]
[Annotator "RC"]
[ECO "A62"]
[WhiteElo "2077"]
[BlackElo "2375"]
[PlyCount "62"]
[EventDate "2025.04.09"]
[EventType "swiss"]
[EventCountry "ISL"]
[SourceTitle "playchess.com"]
[Source "ChessBase"]
[SourceQuality "1"]
[TimeControl "40/5400+30:1800+30"]

1. d4 {[%emt 0:00:02]} Nf6 {[%emt 0:00:08]} 2. c4 {[%emt 0:00:05]} e6 {[%emt 0:01:07]} 3. g3 {[%emt 0:00:05]} c5 {[%emt 0:02:03]} 4. d5 {[%emt 0:00:07]} exd5 {[%emt 0:00:14]} 5. cxd5 {[%emt 0:00:03]} d6 {[%emt 0:00:06]} 6. Bg2 {[%emt 0:00:30]} g6 {[%emt 0:00:21]} 7. Nc3 {[%emt 0:00:11]} Bg7 {[%emt 0:00:16]} 8. Nf3 {[%emt 0:00:07]} O-O {[%emt 0:00:20]} 9. O-O {[%emt 0:00:05]} Na6 {[%emt 0:00:13]} 10. Bf4 {[%emt 0:01:50]} Nc7 {[%emt 0:05:33]} 11. e4 {[%emt 0:07:40]} Nh5 {[%emt 0:14:45]} 12. Bg5 {[%emt 0:01:34]} f6 {[%emt 0:02:08]} 13. Be3 {[%emt 0:01:37]} b5 {[%emt 0:18:09]} 14. h3 {[%emt 0:12:25]} b4 {[%emt 0:02:08]} 15. Ne2 {[%emt 0:01:31]} Bh8 {[%emt 0:00:14]} 16. g4 {[%emt 0:09:41]} Ng7 {[%emt 0:00:05]} 17. e5 {[%emt 0:00:26]} fxe5 {[%emt 0:06:17]} 18. Nxe5 {[%emt 0:00:31]} Nf5 {[%emt 0:05:36]} 19. gxf5 {[%emt 0:14:35]} Bxe5 {[%emt 0:01:30]} 20. fxg6 {[%emt 0:04:05]} hxg6 {[%emt 0:02:34]} 21. Qd2 {[%emt 0:03:57]} Qh4 {[%emt 0:10:37]} 22. Bg5 {[%emt 0:01:52]} Qh8 {[%emt 0:02:04]} 23. Bh6 {[%emt 0:07:23]} Rf7 {[%emt 0:03:46]} 24. Qg5 {[%emt 0:01:48]} Qf6 {[%emt 0:05:30]} 25. Qxf6 {[%emt 0:02:06]} Bxf6 {[%emt 0:01:54]} 26. Bf4 {[%emt 0:02:41]} Ne8 {[%emt 0:00:29]} 27. Ng3 {[%emt 0:01:44]} Bxb2 {[%emt 0:00:51]} 28. Rfe1 {[%emt 0:01:35]} Bd7 {[%emt 0:03:12]} 29. Rab1 {[%emt 0:00:44]} Bd4 {[%emt 0:04:08]} 30. Re4 {[%emt 0:01:40]} a5 {[%emt 0:00:53]} 31. Ne2 {[%emt 0:02:24]} Bf5 {[%emt 0:00:58]} 0-1

[Event "Reykjavik Open 2025"]
[Site "Reykjavik"]
[Date "2025.04.14"]
[Round "8.23"]
[White "Gorshtein, Ido"]
[Black "Nayak Rajesh"]
[Result "1-0"]
[Annotator "TA"]
[ECO "E04"]
[WhiteElo "2557"]
[BlackElo "2277"]
[PlyCount "71"]
[EventDate "2025.04.09"]
[EventType "swiss"]
[EventCountry "ISL"]
[SourceTitle "playchess.com"]
[Source "ChessBase"]
[SourceQuality "1"]
[TimeControl "40/5400+30:1800+30"]

{[%evp 9,70,10,14,4,8,-12,7,0,22,-4,70,4,27,4,28,-15,5,0,0,0,6,0,2,0,7,8,8,8,14,0,41,55,92,105,118,113,81,35,70,28,193,196,469,464,1201,1200,1150,1074,1032,783,1062,708,704,636,706,572,1623,1380,29997,29998,29998,29999,29999]} 1. d4 {[%emt 0:00:03]} Nf6 {[%emt 0:00:12]} 2. c4 {[%emt 0:00:05]} e6 {[%emt 0:00:44]} 3. Nf3 {[%emt 0:00:07]} d5 {[%emt 0:00:33]} 4. g3 {[%emt 0:00:18]} dxc4 {[%emt 0:00:25]} 5. Bg2 {[%emt 0:00:17]} c6 {[%emt 0:00:14]} 6. a4 {[%emt 0:01:13] E04: Open Catalan: 5 Nf3.} Bb4+ {[%emt 0:00:18]} 7. Nc3 {[%emt 0:01:43]} c5 {[%emt 0:05:48]} 8. O-O {[%emt 0:00:50] The position is equal.} Nc6 {[%emt 0:01:39]} 9. dxc5 {[%emt 0:04:13]} Qxd1 {[%emt 0:04:29]} (9... O-O $11) 10. Nxd1 $146 {[%emt 0:06:29]} ({White should try} 10. Rxd1 $14 Bxc5 11. a5) (10. Rxd1 Bxc5 11. Bf4 a6 12. Ne5 Na5 13. Bg5 Nd7 14. Ne4 Bb4 15. Nxd7 Bxd7 16. Nd6+ Bxd6 17. Rxd6 {0-1 Zlatin,A (2327)-Karttunen,M (2485) Titled Tuesday intern op 07th Sept blitz 2021 (8)}) 10... Ne4 {[%emt 0:08:47]} 11. Ne3 {[%emt 0:04:24]} (11. Ne5 $5 Nxe5 12. Bxe4 $14) 11... c3 {[%emt 0:01:27]} 12. Nc4 {[%emt 0:14:20]} Bxc5 {[%emt 0:05:55]} 13. e3 {[%emt 0:11:01][%cal Of3d4] White sacrificed a pawn} Bb4 {[%emt 0:18:03]} 14. bxc3 {[%emt 0:01:27]} Nxc3 {[%emt 0:00:12]} 15. a5 {[%emt 0:05:28]} Rb8 {[%emt 0:10:33]} 16. Ba3 {[%emt 0:01:27]} Bxa3 {[%emt 0:03:19]} 17. Rxa3 {[%emt 0:00:09][%cal Ba1a3,Ba3b3,Bb3d3,Bd3d7,Bd7b7][%mdl 32]} Nb5 {[%emt 0:00:06]} 18. Rb3 {[%emt 0:03:47]} a6 {[%emt 0:00:27]} 19. Ng5 {[%emt 0:01:25]} Bd7 {[%emt 0:08:05]} 20. Rd1 {[%emt 0:01:38] and Rbd3 would now be decisive} f6 {[%emt 0:03:00] [#]} 21. Rbd3 $1 {[%emt 0:04:03] White has strong rooks and is better Repels e5. White is much more active. The black rooks are passive.} fxg5 {[%emt 0:03:53]} ({Don't blunder} 21... Rd8 $2 22. Bxc6 (22. Nf7 Kxf7 23. Rxd7+ Rxd7 $18) 22... bxc6 23. Nxe6 $18) 22. Rxd7 {[%emt 0:00:07]} O-O {[%emt 0:00:07]} 23. Bh3 {[%emt 0:05:31] Dodges Rf5} (23. Bxc6 $16 bxc6 24. Re7) 23... Rf6 {[%emt 0:01:02]} 24. R1d3 {[%emt 0:01:12]} Rc8 $2 {[%emt 0:03:19] Black cannot hold the game after this.} (24... h5 $11) 25. Rxb7 $18 {[%emt 0:02:55]} Nb4 $2 {[%emt 0:02:55]} (25... Nd8 {was necessary.} 26. Rb6 Rf8) 26. Rdd7 {[%emt 0:00:26]} h5 {[%emt 0:03:00]} (26... Kf8 $142 27. Bg2 h5) 27. Rxg7+ {[%emt 0:01:21]} Kf8 {[%emt 0:00:07] [#]} 28. Rh7 $1 {[%emt 0:00:43]} Kg8 {[%emt 0:00:10] Against Rh8+} 29. Bf1 {[%emt 0:00:34]} Rc5 {[%emt 0:00:50]} 30. Rhg7+ {[%emt 0:00:41]} Kf8 {[%emt 0:00:21]} 31. Rgd7 {[%emt 0:00:06][%cal Rd7d8]} Kg8 {[%emt 0:00:18]} 32. Nd2 {[%emt 0:00:16]} Rd5 {[%emt 0:01:03]} 33. Ne4 {[%emt 0:00:10]} Rff5 {[%emt 0:01:07]} 34. Rb8+ {[%emt 0:00:16] White mates.} Rf8 {[%emt 0:00:05]} 35. Nf6+ {[%emt 0:00:05]} Kh8 {[%emt 0:00:03]} 36. Rh7# {[%emt 0:00:11] Weighted Error Value: White=0.42/Black=0.95  Loses game:     	---       	Black=1      Mistake:       	White=2     	Black=3      Inaccurate:     	White=2     	Black=4      OK:         	White=5     	Black=5      Best:        	White=5     	Black=1      Strong:       	White=1     	---} 1-0

[Event "Reykjavik Open 2025"]
[Site "Reykjavik"]
[Date "2025.04.14"]
[Round "8.24"]
[White "Adhiban, B.."]
[Black "Priansh Das"]
[Result "0-1"]
[Annotator "TA"]
[ECO "C42"]
[WhiteElo "2554"]
[BlackElo "2262"]
[PlyCount "52"]
[EventDate "2025.04.09"]
[EventType "swiss"]
[EventCountry "ISL"]
[SourceTitle "playchess.com"]
[Source "ChessBase"]
[SourceQuality "1"]
[TimeControl "40/5400+30:1800+30"]

{[%evp 14,52,0,0,0,0,0,0,8,13,9,-41,-38,-74,-71,-157,-150,-214,-233,-387,-387,-379,-389,-858,-847,-1117,-933,-933,-940,-876,-789,-795,-768,-770,-756,-950,-948,-959,-957,-908,-902]} 1. e4 {[%emt 0:00:06]} e5 {[%emt 0:00:11]} 2. Nf3 {[%emt 0:00:03]} Nf6 {[%emt 0:00:04]} 3. Nxe5 {[%emt 0:00:06]} d6 {[%emt 0:00:04]} 4. Nf3 {[%emt 0:00:04]} Nxe4 {[%emt 0:00:06]} 5. Nc3 {[%emt 0:00:02]} Nxc3 {[%emt 0:00:08]} 6. dxc3 {[%emt 0:00:03]} Be7 {[%emt 0:00:07]} 7. Bf4 {[%emt 0:00:20]} Nd7 {[%emt 0:00:52][%cal Bb8d7,Bd7f6,Bf6h5,Bh5g3][%mdl 32]} 8. Qd2 {[%emt 0:00:17]} O-O {[%emt 0:00:38] C42: Petroff Defence: 3 Nxe5 and unusual White 3rd moves.} 9. O-O-O {[%emt 0:00:05]} Re8 {[%emt 0:04:17]} 10. h4 {[%emt 0:00:06]} Nf6 {[%emt 0:03:25] The position is equal. Recently 10...h6 got a lot of attention.} 11. Bd3 {[%emt 0:11:36] Repels Ne4} d5 {[%emt 0:14:31]} 12. Ng5 {[%emt 0:23:06]} (12. h5 $11) 12... h6 $15 {[%emt 0:06:53][%cal Oc7c5]} 13. f3 {[%emt 0:05:00][%cal Og2g4] [#]} Nh5 $146 {[%emt 0:12:28]} (13... hxg5 $2 14. hxg5 $18) (13... c5 14. g4 c4 15. Bf1 Qa5 16. Kb1 b5 17. a3 d4 18. Qxd4 Rd8 {0-1 Plotnikov,P (2297)-Paravyan,D (2599) Titled Tuesday intern op 05th Sep Late blitz 2023 (1)}) 14. Be3 {[%emt 0:43:40]} Ng3 $17 {[%emt 0:02:57]} (14... hxg5 15. hxg5 Ng3 16. Bh7+ Kf8 17. Be4 Nxh1 (17... dxe4 18. Rh8#) 18. Rxh1 $19) 15. Rh2 {[%emt 0:02:53]} (15. Bh7+ $17 Kf8 16. Bd3) 15... Bd6 $19 {[%emt 0:05:40]} 16. Bf4 {[%emt 0:02:52] [#]} (16. Nh3 {keeps fighting.}) 16... Ne2+ $1 {[%emt 0:06:52][%mdl 512]} 17. Bxe2 {[%emt 0:00:27]} Rxe2 {[%emt 0:00:06]} (17... hxg5 $2 {is the wrong capture.} 18. hxg5 (18. Bxg5 f6 $17) 18... Kf8 19. Bd3 $18) 18. Qd4 {[%emt 0:04:50]} (18. Qxe2 Bxf4+ 19. Kb1 Bxh2 20. Rxd5) 18... c5 {[%emt 0:00:38] Black is clearly winning.} 19. Qa4 {[%emt 0:00:27]} b5 {[%emt 0:00:44]} 20. Qxb5 {[%emt 0:00:05]} Bxf4+ {[%emt 0:00:23]} 21. Kb1 {[%emt 0:00:01]} Bxh2 {[%emt 0:01:22]} 22. Qxe2 {[%emt 0:00:02]} hxg5 {[%emt 0:00:26]} 23. hxg5 {[%emt 0:00:01]} Bf4 {[%emt 0:01:34][%cal Oc8f5]} 24. c4 {[%emt 0:01:43]} Ba6 {[%emt 0:01:37]} 25. g6 {[%emt 0:00:04]} Bxc4 {[%emt 0:00:27]} 26. gxf7+ {[%emt 0:00:03]} Kxf7 {[%emt 0:00:12] White got outplayed after the opening.   Weighted Error Value: White=0.82/Black=0.23 (precise)   Mistake:       	White=5     	---        Inaccurate:     	White=2     	---        OK:         	White=3     	Black=5      Best:        	White=1     	Black=2      Strong:       	---       	Black=1} 0-1

[Event "Reykjavik Open 2025"]
[Site "Reykjavik"]
[Date "2025.04.14"]
[Round "8.25"]
[White "Stefansson, Vignir Vatnar"]
[Black "Kracht, Raphael"]
[Result "1-0"]
[Annotator "TA"]
[ECO "C54"]
[WhiteElo "2536"]
[BlackElo "2196"]
[PlyCount "87"]
[EventDate "2025.04.09"]
[EventType "swiss"]
[EventCountry "ISL"]
[SourceTitle "playchess.com"]
[Source "ChessBase"]
[SourceQuality "1"]
[TimeControl "40/5400+30:1800+30"]

{[%evp 11,87,0,0,-25,-3,-15,-1,-10,10,6,2,7,0,0,0,3,0,0,0,0,0,0,66,68,72,79,65,65,65,64,75,8,18,18,123,117,112,75,79,80,97,89,93,98,104,85,134,91,130,99,114,64,106,63,104,105,671,664,685,683,685,672,644,667,615,577,723,691,4758,4758,29938,12851,29943,6428,6143,6072,4875,2226]} 1. e4 {[%emt 0:00:04]} e5 {[%emt 0:12:33]} 2. Nf3 {[%emt 0:00:14]} Nc6 {[%emt 0:00:04]} 3. Bc4 {[%emt 0:00:19]} Bc5 {[%emt 0:00:07]} 4. c3 {[%emt 0:00:05]} Nf6 {[%emt 0:00:04][%cal Bg8f6,Bf6e4,Be4d2][%mdl 32]} 5. d4 {[%emt 0:00:05]} exd4 {[%emt 0:00:04]} 6. cxd4 {[%emt 0:00:05]} Bb4+ {[%emt 0:00:06]} 7. Nbd2 $1 {[%emt 0:00:05][%mdl 4] is more profitable than 7.Bd2 at the moment. C54: Giuoco Piano: 4 c3 Nf6, main lines with 5 d4 and 5 d3.} Nxe4 {[%emt 0:03:59] Threatening ...d5.} 8. d5 {[%emt 0:00:06][%cal Oe1g1] [#]} (8. O-O Nxd2 9. Bxd2 Bxd2 10. Qxd2 Ne7 11. d5) 8... Ne7 {[%emt 0:06:04]} 9. O-O {[%emt 0:00:09] The position is equal.} Bxd2 {[%emt 0:11:54]} 10. Nxd2 {[%emt 0:00:09]} Nxd2 {[%emt 0:09:23]} 11. Bxd2 {[%emt 0:00:19][%cal Od5d6]} d6 {[%emt 0:11:34]} 12. Re1 {[%emt 0:03:25] White sacrificed a pawn} O-O {[%emt 0:01:56]} 13. Rc1 {[%emt 0:00:18]} Ng6 {[%emt 0:05:27]} 14. Bf1 {[%emt 0:02:10]} Bd7 {[%emt 0:14:06]} 15. Qb3 {[%emt 0:00:42]} c5 $146 {[%emt 0:08:23]} (15... Qb8 16. h4 Nxh4 17. Qc4 Nf5 18. Qxc7 Rd8 19. Bd3 h6 20. Qc2 Nh4 21. Qc4 Bf5 22. Bxf5 Nxf5 23. Qf4 g6 24. g4 Ng7 25. Re7 Rf8 26. Qxh6 Re8 27. Bc3 {1-0 Kashlinskaya,A (2493)-Wagner,D (2440) Wroclaw POL-ROW (Women) 2025 (5.4)}) 16. Qxb7 {[%emt 0:02:44]} Qc8 {[%emt 0:00:56]} (16... Rb8 $11 17. Qa6 (17. Qxa7 Rxb2 18. Red1 Rb8 $11) 17... Rxb2) 17. Qb3 $14 {[%emt 0:08:48] White has more active pieces.} Rb8 {[%emt 0:01:30]} 18. Qg3 {[%emt 0:00:10]} Rxb2 {[%emt 0:03:57]} 19. Bc3 {[%emt 0:00:32]} Rxa2 {[%emt 0:00:43]} 20. Qxd6 {[%emt 0:00:57][%csl Od5][%cal Oc3d4] White has a strong passed pawn} c4 {[%emt 0:04:35]} 21. Ra1 {[%emt 0:09:00]} (21. Qg3 $16) 21... Rxa1 $11 {[%emt 0:01:30]} 22. Rxa1 {[%emt 0:00:07]} Qb7 {[%emt 0:01:28] Black is weak on the dark squares} (22... Rd8 $11 {remains equal.}) 23. Bxc4 $16 {[%emt 0:02:31]} Bb5 {[%emt 0:00:14]} 24. Ba2 {[%emt 0:03:02] A strong pair of Bishops.} Rc8 {[%emt 0:00:39]} 25. Qb4 {[%emt 0:00:06]} Qc7 {[%emt 0:01:08]} 26. Bb2 {[%emt 0:01:31]} Qc5 {[%emt 0:00:22]} 27. Qd2 {[%emt 0:00:55] aiming for Rc1.} (27. Qxc5 {simplifies} Rxc5 28. Bd4 Rc7 29. g3) 27... Qd6 {[%emt 0:00:28]} 28. Re1 $40 {[%emt 0:05:18][%mdl 128] White attacks with force.} Bd7 {[%emt 0:00:44]} (28... Nh4 $142 29. Be5 Qg6) 29. Re3 {[%emt 0:06:07]} Kh8 {[%emt 0:00:30]} 30. g3 {[%emt 0:04:27]} f6 {[%emt 0:00:20]} 31. Qe2 {[%emt 0:01:04]} ({White should play} 31. Qa5 $16) 31... h6 {[%emt 0:00:40]} 32. h4 {[%emt 0:03:32]} a5 {[%emt 0:00:26][%cal Og6e5]} 33. Qh5 {[%emt 0:01:31]} Ne5 {[%emt 0:00:30][%mdl 8192] [#] Loses the game.} 34. Rxe5 $1 $18 {[%emt 0:01:28]} ({Weaker is} 34. Bxe5 fxe5 35. Rxe5 (35. Qxe5 Qxe5 36. Rxe5 Rc2 $11) 35... Qa3 $16) 34... fxe5 {[%emt 0:00:09]} 35. Bxe5 {[%emt 0:00:27]} Be8 {[%emt 0:00:53]} 36. Qxe8+ {[%emt 0:04:25]} Rxe8 {[%emt 0:00:04]} 37. Bxd6 {[%emt 0:00:04]} Re2 {[%emt 0:00:52]} 38. Bc4 {[%emt 0:00:11]} Re1+ {[%emt 0:00:32]} 39. Kg2 {[%emt 0:00:05]} a4 {[%emt 0:00:29]} 40. Ba3 {[%emt 0:00:42]} Re4 {[%emt 0:00:35]} 41. Bb5 {[%emt 0:30:07]} Kg8 {[%emt 0:30:22]} 42. d6 {[%emt 0:00:06] Intending Kf3 and mate.} Kf7 {[%emt 0:00:32]} 43. d7 {[%emt 0:00:05]} Rd4 {[%emt 0:00:12]} 44. Bc5 {[%emt 0:00:14] Weighted Error Value: White=0.11 (very precise) /Black=0.83  Loses game:     	---       	Black=1      Mistake:       	White=2     	Black=3      Inaccurate:     	White=3     	Black=4      OK:         	White=12    	Black=8      Best:        	---       	Black=2      Strong:       	White=1     	---} 1-0

[Event "Reykjavik Open 2025"]
[Site "Reykjavik"]
[Date "2025.04.14"]
[Round "8.26"]
[White "Schouten, Mathias Lind"]
[Black "Zierk, Steven"]
[Result "1/2-1/2"]
[Annotator "RC"]
[ECO "D24"]
[WhiteElo "2279"]
[BlackElo "2501"]
[PlyCount "145"]
[EventDate "2025.04.09"]
[EventType "swiss"]
[EventCountry "ISL"]
[SourceTitle "playchess.com"]
[Source "ChessBase"]
[SourceQuality "1"]
[TimeControl "40/5400+30:1800+30"]

1. d4 {[%emt 0:00:05]} Nf6 {[%emt 0:00:08]} 2. c4 {[%emt 0:00:07]} e6 {[%emt 0:00:10]} 3. Nf3 {[%emt 0:00:08]} d5 {[%emt 0:00:09]} 4. Nc3 {[%emt 0:00:05]} dxc4 {[%emt 0:00:21]} 5. e4 {[%emt 0:00:42]} b5 {[%emt 0:00:09]} 6. e5 {[%emt 0:00:34]} Nd5 {[%emt 0:00:06]} 7. Nxb5 {[%emt 0:00:04]} Nb6 {[%emt 0:00:07]} 8. Be2 {[%emt 0:01:10]} Be7 {[%emt 0:00:45]} 9. O-O {[%emt 0:01:03]} Nc6 {[%emt 0:00:40]} 10. Nc3 {[%emt 0:05:38]} O-O {[%emt 0:06:00]} 11. b3 {[%emt 0:01:34]} cxb3 {[%emt 0:01:13]} 12. axb3 {[%emt 0:00:07]} Bb7 {[%emt 0:05:26]} 13. Bd3 {[%emt 0:03:26]} Nb4 {[%emt 0:03:56]} 14. Bb1 {[%emt 0:01:21]} c5 {[%emt 0:17:02]} 15. Ne4 {[%emt 0:25:14]} cxd4 {[%emt 0:02:29]} 16. Nxd4 {[%emt 0:08:22]} Qd5 {[%emt 0:05:21]} 17. Bb2 {[%emt 0:02:52]} Qxe5 {[%emt 0:07:07]} 18. Qe2 {[%emt 0:03:51]} Qf4 {[%emt 0:05:46]} 19. g3 {[%emt 0:04:40]} Qh6 {[%emt 0:00:58]} 20. h4 {[%emt 0:12:10]} Rfc8 {[%emt 0:08:03]} 21. Nb5 {[%emt 0:05:27]} Ba6 {[%emt 0:09:36]} 22. Rxa6 {[%emt 0:00:08]} Nxa6 {[%emt 0:00:04]} 23. Nbd6 {[%emt 0:00:04]} Bxd6 {[%emt 0:06:15]} 24. Nxd6 {[%emt 0:00:06]} Nb4 {[%emt 0:01:01]} 25. Nxc8 {[%emt 0:01:25]} Rxc8 {[%emt 0:00:08]} 26. Rd1 {[%emt 0:02:44]} N4d5 {[%emt 0:04:03]} 27. Be4 {[%emt 0:00:10]} a5 {[%emt 0:06:29]} 28. Ra1 {[%emt 0:05:26]} Nf6 {[%emt 0:03:13]} 29. Bf3 {[%emt 0:02:45]} Nbd5 {[%emt 0:01:53]} 30. Rxa5 {[%emt 0:01:33]} Qg6 {[%emt 0:00:32]} 31. Qc4 {[%emt 0:03:22]} Qb1+ {[%emt 0:00:47]} 32. Kh2 {[%emt 0:00:02]} Re8 {[%emt 0:01:01]} 33. Qe2 {[%emt 0:03:00]} h6 {[%emt 0:01:42]} 34. b4 {[%emt 0:03:16]} Rb8 {[%emt 0:01:03]} 35. b5 {[%emt 0:00:46]} Qf5 {[%emt 0:01:00]} 36. Be5 {[%emt 0:01:26]} Rc8 {[%emt 0:00:31]} 37. Bxf6 {[%emt 0:01:52]} Nxf6 {[%emt 0:00:23]} 38. Ra8 {[%emt 0:01:08]} Rxa8 {[%emt 0:00:10]} 39. Bxa8 {[%emt 0:00:03]} Qc5 {[%emt 0:01:38]} 40. Kg2 {[%emt 0:00:44]} Kf8 {[%emt 0:02:31]} 41. Bc6 {[%emt 0:31:10]} g5 {[%emt 0:07:08]} 42. hxg5 {[%emt 0:00:00]} hxg5 {[%emt 0:00:06]} 43. Qd2 {[%emt 0:00:00]} Ke7 {[%emt 0:06:01]} 44. Kf1 {[%emt 0:00:00]} Ng4 {[%emt 0:02:10]} 45. Kg2 {[%emt 0:00:00]} Nf6 {[%emt 0:04:18]} 46. Kf1 {[%emt 0:00:00]} Ng4 {[%emt 0:01:18]} 47. Kg1 {[%emt 0:00:00]} f6 {[%emt 0:02:40]} 48. Bf3 {[%emt 0:00:00]} Ne5 {[%emt 0:00:41]} 49. Be2 {[%emt 0:00:00]} Qxb5 {[%emt 0:00:22]} 50. Bxb5 {[%emt 0:00:00]} Nf3+ {[%emt 0:00:02]} 51. Kg2 {[%emt 0:00:00]} Nxd2 {[%emt 0:00:07]} 52. Bd3 {[%emt 0:00:00]} e5 {[%emt 0:07:26]} 53. f3 {[%emt 0:00:00]} Nb3 {[%emt 0:03:55]} 54. Kf2 {[%emt 0:00:00]} Nc5 {[%emt 0:00:16]} 55. Bf5 {[%emt 0:00:00]} Nb7 {[%emt 0:00:32]} 56. f4 {[%emt 0:01:12]} Nd6 {[%emt 0:00:20]} 57. Bb1 {[%emt 0:00:54]} Ke6 {[%emt 0:00:29]} 58. fxg5 {[%emt 0:00:38]} fxg5 {[%emt 0:00:40]} 59. Kf3 {[%emt 0:00:13]} Kd5 {[%emt 0:00:26]} 60. Kg4 {[%emt 0:01:06]} Ne4 {[%emt 0:00:48]} 61. Ba2+ {[%emt 0:02:57]} Kd4 {[%emt 0:00:11]} 62. Bf7 {[%emt 0:00:47]} Nf2+ {[%emt 0:00:58]} 63. Kxg5 {[%emt 0:00:23]} e4 {[%emt 0:00:29]} 64. Bh5 {[%emt 0:00:11]} e3 {[%emt 0:00:28]} 65. Bf3 {[%emt 0:00:43]} Kd3 {[%emt 0:00:11]} 66. Kf5 {[%emt 0:02:28]} Nh3 {[%emt 0:00:48]} 67. Bb7 {[%emt 0:00:51]} Kd2 {[%emt 0:00:27]} 68. Ba6 {[%emt 0:00:06]} Nf2 {[%emt 0:00:38]} 69. Bf1 {[%emt 0:00:06]} Ke1 {[%emt 0:00:35]} 70. Kf4 {[%emt 0:00:14]} Kxf1 {[%emt 0:00:31]} 71. Kxe3 {[%emt 0:00:05]} Kg2 {[%emt 0:00:02]} 72. g4 {[%emt 0:00:04]} Nxg4+ {[%emt 0:00:02]} 73. Ke4 {[%emt 0:00:30]} 1/2-1/2

[Event "Reykjavik Open 2025"]
[Site "Reykjavik"]
[Date "2025.04.14"]
[Round "8.27"]
[White "Bailet, Pierre"]
[Black "Harish, Neeraj"]
[Result "1/2-1/2"]
[Annotator "RC"]
[ECO "D02"]
[WhiteElo "2495"]
[BlackElo "2169"]
[PlyCount "103"]
[EventDate "2025.04.09"]
[EventType "swiss"]
[EventCountry "ISL"]
[SourceTitle "playchess.com"]
[Source "ChessBase"]
[SourceQuality "1"]
[TimeControl "40/5400+30:1800+30"]

1. Nf3 {[%emt 0:00:17]} Nf6 {[%emt 0:00:20]} 2. g3 {[%emt 0:00:35]} g6 {[%emt 0:00:16]} 3. Bg2 {[%emt 0:00:38]} Bg7 {[%emt 0:00:19]} 4. O-O {[%emt 0:00:31]} O-O {[%emt 0:00:18]} 5. d4 {[%emt 0:00:18]} d5 {[%emt 0:00:51]} 6. c3 {[%emt 0:00:13]} c6 {[%emt 0:12:43]} 7. Nbd2 {[%emt 0:01:14]} Nbd7 {[%emt 0:02:00]} 8. Re1 {[%emt 0:00:42]} e5 {[%emt 0:08:01]} 9. dxe5 {[%emt 0:14:19]} Ng4 {[%emt 0:00:16]} 10. e4 {[%emt 0:07:11]} Ndxe5 {[%emt 0:00:54]} 11. Nxe5 {[%emt 0:02:00]} Nxe5 {[%emt 0:00:22]} 12. exd5 {[%emt 0:01:53]} cxd5 {[%emt 0:00:17]} 13. Nb3 {[%emt 0:02:51]} Bg4 {[%emt 0:02:00]} 14. Qxd5 {[%emt 0:06:11]} Qxd5 {[%emt 0:03:51]} 15. Bxd5 {[%emt 0:00:06]} Nf3+ {[%emt 0:00:09]} 16. Bxf3 {[%emt 0:00:06]} Bxf3 {[%emt 0:00:05]} 17. Be3 {[%emt 0:02:18]} Rfd8 {[%emt 0:09:39]} 18. Bd4 {[%emt 0:05:22]} a5 {[%emt 0:08:16]} 19. Bxg7 {[%emt 0:01:23]} Kxg7 {[%emt 0:00:09]} 20. Nd4 {[%emt 0:00:14]} Bd5 {[%emt 0:00:20]} 21. f3 {[%emt 0:08:00]} b5 {[%emt 0:04:39]} 22. a3 {[%emt 0:05:27]} Rab8 {[%emt 0:07:47]} 23. b4 {[%emt 0:06:03]} Rdc8 {[%emt 0:11:13]} 24. Re3 {[%emt 0:04:19]} Kf6 {[%emt 0:03:44]} 25. Kf2 {[%emt 0:00:43]} h5 {[%emt 0:03:08]} 26. h4 {[%emt 0:05:21]} Rc7 {[%emt 0:02:30]} 27. Rae1 {[%emt 0:01:59]} axb4 {[%emt 0:01:03]} 28. axb4 {[%emt 0:00:17]} Ra7 {[%emt 0:00:10]} 29. R1e2 {[%emt 0:03:38]} Ra3 {[%emt 0:01:51]} 30. Rd2 {[%emt 0:01:14]} Bc4 {[%emt 0:01:44]} 31. g4 {[%emt 0:03:40]} Rba8 {[%emt 0:05:13]} 32. Kg3 {[%emt 0:05:58]} Ra1 {[%emt 0:01:57]} 33. gxh5 {[%emt 0:05:31]} gxh5 {[%emt 0:00:08]} 34. Kf4 {[%emt 0:02:16]} Rh1 {[%emt 0:02:26]} 35. Nf5 {[%emt 0:00:02]} Be6 {[%emt 0:00:11]} 36. Rd6 {[%emt 0:00:17]} Rc8 {[%emt 0:00:25]} 37. Nd4 {[%emt 0:00:24]} Rg8 {[%emt 0:03:20]} 38. Rexe6+ {[%emt 0:02:51]} fxe6 {[%emt 0:00:14]} 39. Rxe6+ {[%emt 0:00:02]} Kf7 {[%emt 0:00:18]} 40. Rb6 {[%emt 0:01:49]} Rxh4+ {[%emt 0:00:29]} 41. Kf5 {[%emt 0:30:06]} Re8 {[%emt 0:09:02]} 42. Rxb5 {[%emt 0:00:00]} Rh1 {[%emt 0:02:05]} 43. Nc6 {[%emt 0:00:00]} Rc1 {[%emt 0:07:05]} 44. Rb7+ {[%emt 0:00:00]} Kf8 {[%emt 0:01:26]} 45. Ne5 {[%emt 0:00:00]} Rd8 {[%emt 0:04:45]} 46. c4 {[%emt 0:00:00]} Rd4 {[%emt 0:02:20]} 47. c5 {[%emt 0:00:00]} h4 {[%emt 0:01:07]} 48. Kf6 {[%emt 0:00:06]} Rf4+ {[%emt 0:02:13]} 49. Kg5 {[%emt 0:00:04]} Rd4 {[%emt 0:00:15]} 50. Kf6 {[%emt 0:04:36]} Rf4+ {[%emt 0:00:16]} 51. Kg5 {[%emt 0:00:59]} Rd4 {[%emt 0:00:13]} 52. Kf6 {[%emt 0:01:06]} 1/2-1/2